[Event "Titled Tuesday Blitz February 21 Late 2023"]
[White "Krishnan, Varun"]
[Black "Anton Guijarro, David"]
[WhiteFideId "5054508"]
[BlackFideId "2285525"]
[WhiteElo "2341"]
[BlackElo "2690"]
[Result "0-1"]
[Round "02"]
[TimeControl "180+2"]
[Date "2023.02.21"]
[WhiteClock "0:00:12"]
[BlackClock "0:00:40"]

1. e4 {[%clk 0:03:00]}  c6 {[%clk 0:02:59]} 2. d4 {[%clk 0:02:58]}  d5 {[%clk 0:02:59]} 3. exd5 {[%clk 0:02:58]}  cxd5 {[%clk 0:02:59]} 4. c4 {[%clk 0:02:59]}  Nf6 {[%clk 0:02:58]} 5. Nc3 {[%clk 0:02:59]}  Nc6 {[%clk 0:02:57]} 6. Nf3 {[%clk 0:02:54]}  a6 {[%clk 0:02:56]} 7. Bg5 {[%clk 0:02:28]}  Be6 {[%clk 0:02:55]} 8. a3 {[%clk 0:02:22]}  g6 {[%clk 0:02:52]} 9. b4 {[%clk 0:02:16]}  Bg7 {[%clk 0:02:48]} 10. c5 {[%clk 0:02:15]}  Ne4 {[%clk 0:02:45]} 11. Nxe4 {[%clk 0:01:36]}  dxe4 {[%clk 0:02:45]} 12. Nd2 {[%clk 0:01:37]}  Qxd4 {[%clk 0:02:33]} 13. Rc1 {[%clk 0:01:29]}  Ne5 {[%clk 0:02:21]} 14. Be3 {[%clk 0:01:20]}  Nd3+ {[%clk 0:02:15]} 15. Bxd3 {[%clk 0:01:18]}  Qxd3 {[%clk 0:02:16]} 16. Qa4+ {[%clk 0:01:01]}  Bd7 {[%clk 0:02:02]} 17. Qb3 {[%clk 0:00:54]}  Bb5 {[%clk 0:01:53]} 18. Qxd3 {[%clk 0:00:46]}  Bxd3 {[%clk 0:01:54]} 19. Nc4 {[%clk 0:00:46]}  Rd8 {[%clk 0:01:43]} 20. f4 {[%clk 0:00:42]}  O-O {[%clk 0:01:38]} 21. Kf2 {[%clk 0:00:28]}  f5 {[%clk 0:01:36]} 22. Rhd1 {[%clk 0:00:27]}  g5 {[%clk 0:01:07]} 23. g3 {[%clk 0:00:26]}  gxf4 {[%clk 0:01:07]} 24. gxf4 {[%clk 0:00:27]}  Kf7 {[%clk 0:01:07]} 25. Ne5+ {[%clk 0:00:23]}  Bxe5 {[%clk 0:01:03]} 26. fxe5 {[%clk 0:00:24]}  Bb5 {[%clk 0:01:00]} 27. Bf4 {[%clk 0:00:22]}  Ke6 {[%clk 0:00:52]} 28. Ke3 {[%clk 0:00:19]}  Ba4 {[%clk 0:00:52]} 29. Rxd8 {[%clk 0:00:17]}  Rxd8 {[%clk 0:00:53]} 30. Rc3 {[%clk 0:00:16]}  Rd1 {[%clk 0:00:52]} 31. Bg3 {[%clk 0:00:14]}  Rf1 {[%clk 0:00:51]} 32. Ke2 {[%clk 0:00:13]}  Bb5+ {[%clk 0:00:50]} 33. Kd2 {[%clk 0:00:13]}  f4 {[%clk 0:00:48]} 34. Be1 {[%clk 0:00:12]}  e3+ {[%clk 0:00:47]} 35. Kd1 {[%clk 0:00:12]}  Ba4+ {[%clk 0:00:47]} 36. Ke2 {[%clk 0:00:12]}  Bb5+ {[%clk 0:00:47]} 37. Kd1 {[%clk 0:00:13]}  Kxe5 {[%clk 0:00:47]} 38. c6 {[%clk 0:00:10]}  bxc6 {[%clk 0:00:46]} 39. Rc5+ {[%clk 0:00:10]}  Kd4 {[%clk 0:00:45]} 40. a4 {[%clk 0:00:10]}  Bxa4+ {[%clk 0:00:40]} 41. Ke2 {[%clk 0:00:10]}  Bb5+ {[%clk 0:00:41]} 42. Rxb5 {[%clk 0:00:11]}  Rxe1+ {[%clk 0:00:40]} 43. Kxe1 {[%clk 0:00:12]}  axb5 {[%clk 0:00:40]} 44. Ke2 {[%clk 0:00:10]}  Ke4 {[%clk 0:00:40]} 45. h4 {[%clk 0:00:10]}  f3+ {[%clk 0:00:40]} 46. Ke1 {[%clk 0:00:11]}  e2 {[%clk 0:00:39]} 47. h5 {[%clk 0:00:11]}  Ke3 {[%clk 0:00:39]} 48. h6 {[%clk 0:00:12]}  f2# {[%clk 0:00:40]} 0-1


[Site "https://www.chess.com"]

[Event "Titled Tuesday Blitz February 21 Late 2023"]
[White "Guzman, Christopher"]
[Black "Ibarra Jerez, Jose Carlos"]
[WhiteFideId "6405096"]
[BlackFideId "2226332"]
[WhiteElo "2271"]
[BlackElo "2563"]
[Result "0-1"]
[Round "02"]
[TimeControl "180+2"]
[Date "2023.02.21"]
[WhiteClock "0:01:03"]
[BlackClock "0:00:41"]

1. e4 {[%clk 0:02:59]}  c5 {[%clk 0:02:59]} 2. Nf3 {[%clk 0:02:58]}  Nc6 {[%clk 0:02:59]} 3. d4 {[%clk 0:02:57]}  cxd4 {[%clk 0:02:59]} 4. Nxd4 {[%clk 0:02:58]}  Nf6 {[%clk 0:02:57]} 5. Nc3 {[%clk 0:02:58]}  e6 {[%clk 0:02:58]} 6. a3 {[%clk 0:02:49]}  Be7 {[%clk 0:02:55]} 7. Ndb5 {[%clk 0:02:46]}  d6 {[%clk 0:02:42]} 8. g3 {[%clk 0:02:35]}  O-O {[%clk 0:02:34]} 9. Bg2 {[%clk 0:02:35]}  a6 {[%clk 0:02:27]} 10. Nd4 {[%clk 0:02:34]}  Qc7 {[%clk 0:02:27]} 11. O-O {[%clk 0:02:34]}  Bd7 {[%clk 0:02:22]} 12. h3 {[%clk 0:02:34]}  Rac8 {[%clk 0:02:22]} 13. Re1 {[%clk 0:02:34]}  b5 {[%clk 0:02:16]} 14. Kh2 {[%clk 0:02:31]}  Nxd4 {[%clk 0:02:05]} 15. Qxd4 {[%clk 0:02:31]}  Bc6 {[%clk 0:02:06]} 16. Bg5 {[%clk 0:02:30]}  h6 {[%clk 0:02:04]} 17. Be3 {[%clk 0:02:27]}  Qb7 {[%clk 0:02:02]} 18. f3 {[%clk 0:02:23]}  e5 {[%clk 0:01:51]} 19. Qb6 {[%clk 0:02:21]}  Qa8 {[%clk 0:01:50]} 20. Rad1 {[%clk 0:02:15]}  d5 {[%clk 0:01:31]} 21. exd5 {[%clk 0:01:43]}  Nxd5 {[%clk 0:01:31]} 22. Qa7 {[%clk 0:01:44]}  Nxc3 {[%clk 0:01:19]} 23. bxc3 {[%clk 0:01:41]}  Bxa3 {[%clk 0:01:15]} 24. Ra1 {[%clk 0:01:32]}  Qxa7 {[%clk 0:01:04]} 25. Bxa7 {[%clk 0:01:31]}  Bb2 {[%clk 0:01:05]} 26. Rxa6 {[%clk 0:01:28]}  Bxc3 {[%clk 0:01:05]} 27. Re3 {[%clk 0:01:28]}  b4 {[%clk 0:01:02]} 28. Bc5 {[%clk 0:01:24]}  Rfd8 {[%clk 0:01:00]} 29. Bf1 {[%clk 0:01:13]}  Rd2+ {[%clk 0:00:56]} 30. Re2 {[%clk 0:01:11]}  Bxf3 {[%clk 0:00:55]} 31. Rxd2 {[%clk 0:01:09]}  Bxd2 {[%clk 0:00:55]} 32. Bd6 {[%clk 0:01:08]}  Rxc2 {[%clk 0:00:51]} 33. Bd3 {[%clk 0:01:08]}  Rc1 {[%clk 0:00:41]} 34. g4 {[%clk 0:01:03]} 0-1


[Site "https://www.chess.com"]

[Event "Titled Tuesday Blitz February 21 Late 2023"]
[White "Swiercz, Dariusz"]
[Black "Melian, Juan Sebastian"]
[WhiteFideId "1126881"]
[BlackFideId "3706575"]
[WhiteElo "2637"]
[BlackElo "2293"]
[Result "1-0"]
[Round "02"]
[TimeControl "180+2"]
[Date "2023.02.21"]
[WhiteClock "0:00:22"]
[BlackClock "0:00:20"]

1. e4 {[%clk 0:03:00]}  c5 {[%clk 0:02:52]} 2. Nf3 {[%clk 0:03:01]}  e6 {[%clk 0:02:51]} 3. g3 {[%clk 0:03:00]}  Nc6 {[%clk 0:02:47]} 4. Bg2 {[%clk 0:02:59]}  d6 {[%clk 0:02:42]} 5. O-O {[%clk 0:02:58]}  Nf6 {[%clk 0:02:41]} 6. Re1 {[%clk 0:02:59]}  e5 {[%clk 0:02:41]} 7. Nc3 {[%clk 0:02:48]}  Be7 {[%clk 0:02:39]} 8. d3 {[%clk 0:02:49]}  O-O {[%clk 0:02:38]} 9. Bg5 {[%clk 0:02:48]}  Be6 {[%clk 0:02:35]} 10. Nd2 {[%clk 0:02:47]}  Nd7 {[%clk 0:02:30]} 11. Bxe7 {[%clk 0:02:46]}  Qxe7 {[%clk 0:02:31]} 12. Nc4 {[%clk 0:02:45]}  Nd4 {[%clk 0:02:27]} 13. Ne3 {[%clk 0:02:44]}  f5 {[%clk 0:02:17]} 14. exf5 {[%clk 0:02:43]}  Nxf5 {[%clk 0:02:16]} 15. Bxb7 {[%clk 0:02:31]}  Rab8 {[%clk 0:02:12]} 16. Nxf5 {[%clk 0:02:31]}  Bxf5 {[%clk 0:01:55]} 17. Bd5+ {[%clk 0:02:31]}  Kh8 {[%clk 0:01:56]} 18. b3 {[%clk 0:02:24]}  Nf6 {[%clk 0:01:55]} 19. Bg2 {[%clk 0:02:24]}  Ng4 {[%clk 0:01:55]} 20. Qd2 {[%clk 0:02:14]}  Qd7 {[%clk 0:01:42]} 21. Rf1 {[%clk 0:02:04]}  Rf6 {[%clk 0:01:41]} 22. f3 {[%clk 0:01:46]}  Nh6 {[%clk 0:01:18]} 23. g4 {[%clk 0:01:46]}  Be6 {[%clk 0:01:18]} 24. g5 {[%clk 0:01:46]}  Rg6 {[%clk 0:01:19]} 25. gxh6 {[%clk 0:01:44]}  Bh3 {[%clk 0:01:19]} 26. Rf2 {[%clk 0:01:43]}  gxh6 {[%clk 0:01:18]} 27. Kh1 {[%clk 0:01:16]}  Rbg8 {[%clk 0:01:17]} 28. Bxh3 {[%clk 0:00:57]}  Qxh3 {[%clk 0:01:18]} 29. Nd5 {[%clk 0:00:58]}  R8g7 {[%clk 0:01:13]} 30. a3 {[%clk 0:00:45]}  h5 {[%clk 0:01:10]} 31. b4 {[%clk 0:00:42]}  h6 {[%clk 0:01:10]} 32. b5 {[%clk 0:00:40]}  Qe6 {[%clk 0:00:57]} 33. c4 {[%clk 0:00:40]}  Qg8 {[%clk 0:00:57]} 34. Rff1 {[%clk 0:00:30]}  Kh7 {[%clk 0:00:53]} 35. Qf2 {[%clk 0:00:21]}  Qf7 {[%clk 0:00:35]} 36. Rg1 {[%clk 0:00:21]}  Rxg1+ {[%clk 0:00:26]} 37. Rxg1 {[%clk 0:00:22]}  Rxg1+ {[%clk 0:00:26]} 38. Kxg1 {[%clk 0:00:23]}  Qg6+ {[%clk 0:00:27]} 39. Qg2 {[%clk 0:00:22]}  Qf5 {[%clk 0:00:21]} 40. Qg8+ {[%clk 0:00:21]}  Kxg8 {[%clk 0:00:20]} 41. Ne7+ {[%clk 0:00:22]} 1-0


[Site "https://www.chess.com"]

[Event "Titled Tuesday Blitz February 21 Late 2023"]
[White "Melkumyan, Hrant"]
[Black "Martynov, Pavel"]
[WhiteFideId "13302485"]
[BlackFideId "4101260"]
[WhiteElo "2645"]
[BlackElo "2414"]
[Result "1-0"]
[Round "02"]
[TimeControl "180+2"]
[Date "2023.02.21"]
[WhiteClock "0:00:52"]
[BlackClock "0:00:29"]

1. d4 {[%clk 0:02:58]}  d5 {[%clk 0:02:53]} 2. c4 {[%clk 0:02:57]}  e6 {[%clk 0:02:50]} 3. Nc3 {[%clk 0:02:57]}  c5 {[%clk 0:02:51]} 4. e3 {[%clk 0:02:50]}  Nf6 {[%clk 0:02:50]} 5. Nf3 {[%clk 0:02:49]}  Nc6 {[%clk 0:02:49]} 6. cxd5 {[%clk 0:02:49]}  exd5 {[%clk 0:02:47]} 7. Bb5 {[%clk 0:02:47]}  Bd6 {[%clk 0:02:46]} 8. dxc5 {[%clk 0:02:48]}  Bxc5 {[%clk 0:02:46]} 9. O-O {[%clk 0:02:49]}  a6 {[%clk 0:02:45]} 10. Bxc6+ {[%clk 0:02:48]}  bxc6 {[%clk 0:02:45]} 11. b3 {[%clk 0:02:49]}  O-O {[%clk 0:02:45]} 12. Bb2 {[%clk 0:02:50]}  Ba7 {[%clk 0:02:44]} 13. Rc1 {[%clk 0:02:49]}  Re8 {[%clk 0:02:43]} 14. Ne2 {[%clk 0:02:49]}  Qd6 {[%clk 0:02:40]} 15. Qc2 {[%clk 0:02:46]}  Bd7 {[%clk 0:02:40]} 16. Rfd1 {[%clk 0:02:46]}  Ne4 {[%clk 0:02:37]} 17. Ng3 {[%clk 0:02:29]}  Nxf2 {[%clk 0:02:09]} 18. Qc3 {[%clk 0:02:21]}  d4 {[%clk 0:01:53]} 19. Rxd4 {[%clk 0:02:08]}  Bxd4 {[%clk 0:01:52]} 20. Nxd4 {[%clk 0:02:09]}  Ne4 {[%clk 0:01:26]} 21. Nxe4 {[%clk 0:02:07]}  Rxe4 {[%clk 0:01:26]} 22. Nf5 {[%clk 0:01:47]}  Qg6 {[%clk 0:01:23]} 23. Nxg7 {[%clk 0:01:27]}  Rg4 {[%clk 0:01:20]} 24. Nf5 {[%clk 0:01:23]}  Kf8 {[%clk 0:00:36]} 25. Qh8+ {[%clk 0:01:13]}  Qg8 {[%clk 0:00:36]} 26. Ba3+ {[%clk 0:01:12]}  Ke8 {[%clk 0:00:36]} 27. Qf6 {[%clk 0:01:03]}  Rxg2+ {[%clk 0:00:28]} 28. Kh1 {[%clk 0:01:02]}  Qg5 {[%clk 0:00:28]} 29. Ng7+ {[%clk 0:00:52]}  Qxg7 {[%clk 0:00:29]} 30. Qe7# {[%clk 0:00:52]} 1-0


[Site "https://www.chess.com"]

[Event "Titled Tuesday Blitz February 21 Late 2023"]
[White "Klenburg, Michael"]
[Black "Indjic, Aleksandar"]
[WhiteFideId "14102072"]
[BlackFideId "911925"]
[WhiteElo "2325"]
[BlackElo "2618"]
[Result "0-1"]
[Round "02"]
[TimeControl "180+2"]
[Date "2023.02.21"]
[WhiteClock "0:00:09"]
[BlackClock "0:01:00"]

1. e4 {[%clk 0:02:58]}  e5 {[%clk 0:02:59]} 2. Nf3 {[%clk 0:02:58]}  Nc6 {[%clk 0:02:59]} 3. Bb5 {[%clk 0:02:57]}  Nf6 {[%clk 0:02:59]} 4. d3 {[%clk 0:02:56]}  Bc5 {[%clk 0:02:58]} 5. c3 {[%clk 0:02:56]}  O-O {[%clk 0:02:55]} 6. O-O {[%clk 0:02:56]}  d5 {[%clk 0:02:52]} 7. Nbd2 {[%clk 0:02:55]}  Re8 {[%clk 0:02:49]} 8. h3 {[%clk 0:02:52]}  a6 {[%clk 0:02:45]} 9. Ba4 {[%clk 0:02:51]}  b5 {[%clk 0:02:43]} 10. Bb3 {[%clk 0:02:50]}  h6 {[%clk 0:02:37]} 11. Re1 {[%clk 0:02:46]}  Bb6 {[%clk 0:02:32]} 12. exd5 {[%clk 0:02:28]}  Nxd5 {[%clk 0:02:29]} 13. d4 {[%clk 0:02:28]}  Nf4 {[%clk 0:01:58]} 14. Nf1 {[%clk 0:02:22]}  Ng6 {[%clk 0:01:55]} 15. dxe5 {[%clk 0:01:30]}  Qxd1 {[%clk 0:01:54]} 16. Rxd1 {[%clk 0:01:30]}  Ncxe5 {[%clk 0:01:53]} 17. Nxe5 {[%clk 0:01:29]}  Nxe5 {[%clk 0:01:53]} 18. Be3 {[%clk 0:01:29]}  c5 {[%clk 0:01:51]} 19. Ng3 {[%clk 0:01:21]}  Rb8 {[%clk 0:01:49]} 20. Bc2 {[%clk 0:01:12]}  c4 {[%clk 0:01:45]} 21. Bxb6 {[%clk 0:01:11]}  Rxb6 {[%clk 0:01:45]} 22. Rd4 {[%clk 0:01:07]}  g6 {[%clk 0:01:33]} 23. Rad1 {[%clk 0:01:06]}  f5 {[%clk 0:01:32]} 24. Nf1 {[%clk 0:00:59]}  Nf7 {[%clk 0:01:30]} 25. Ne3 {[%clk 0:00:59]}  Kg7 {[%clk 0:01:27]} 26. a4 {[%clk 0:00:51]}  Rb7 {[%clk 0:01:18]} 27. axb5 {[%clk 0:00:50]}  axb5 {[%clk 0:01:18]} 28. Ra1 {[%clk 0:00:49]}  Rd7 {[%clk 0:01:12]} 29. Rxd7 {[%clk 0:00:47]}  Bxd7 {[%clk 0:01:13]} 30. Ra7 {[%clk 0:00:46]}  Bc6 {[%clk 0:01:13]} 31. b3 {[%clk 0:00:17]}  f4 {[%clk 0:01:12]} 32. Ng4 {[%clk 0:00:16]}  h5 {[%clk 0:01:12]} 33. Nh2 {[%clk 0:00:14]}  Re1+ {[%clk 0:01:11]} 34. Nf1 {[%clk 0:00:13]}  Rc1 {[%clk 0:01:09]} 35. Ra2 {[%clk 0:00:13]}  Ne5 {[%clk 0:01:05]} 36. bxc4 {[%clk 0:00:14]}  bxc4 {[%clk 0:01:05]} 37. f3 {[%clk 0:00:14]}  g5 {[%clk 0:01:01]} 38. Kf2 {[%clk 0:00:14]}  g4 {[%clk 0:01:01]} 39. hxg4 {[%clk 0:00:14]}  hxg4 {[%clk 0:01:02]} 40. Be4 {[%clk 0:00:12]}  Bxe4 {[%clk 0:01:00]} 41. fxe4 {[%clk 0:00:13]}  Nd3+ {[%clk 0:01:00]} 42. Ke2 {[%clk 0:00:12]}  Re1+ {[%clk 0:01:00]} 43. Kd2 {[%clk 0:00:10]}  Rxf1 {[%clk 0:01:01]} 44. Ra7+ {[%clk 0:00:10]}  Kf6 {[%clk 0:01:01]} 45. Rc7 {[%clk 0:00:09]}  Rf2+ {[%clk 0:01:00]} 46. Kd1 {[%clk 0:00:09]}  Rxg2 {[%clk 0:00:59]} 47. Rxc4 {[%clk 0:00:09]}  Nb2+ {[%clk 0:01:00]} 0-1


[Site "https://www.chess.com"]

[Event "Titled Tuesday Blitz February 21 Late 2023"]
[White "Gholami Orimi, Mahdi"]
[Black "Chor, Kevin"]
[WhiteFideId "12558486"]
[BlackFideId "2090740"]
[WhiteElo "2420"]
[BlackElo "1944"]
[Result "1/2-1/2"]
[Round "02"]
[TimeControl "180+2"]
[Date "2023.02.21"]
[WhiteClock "0:00:06"]
[BlackClock "0:00:08"]

1. d4 {[%clk 0:02:57]}  Nf6 {[%clk 0:02:59]} 2. c4 {[%clk 0:02:56]}  g6 {[%clk 0:02:59]} 3. Nc3 {[%clk 0:02:49]}  Bg7 {[%clk 0:03:00]} 4. g3 {[%clk 0:02:48]}  O-O {[%clk 0:02:58]} 5. Bg2 {[%clk 0:02:48]}  d6 {[%clk 0:02:59]} 6. Nf3 {[%clk 0:02:49]}  Nc6 {[%clk 0:03:00]} 7. O-O {[%clk 0:02:50]}  Bf5 {[%clk 0:02:59]} 8. Nh4 {[%clk 0:02:47]}  Bd7 {[%clk 0:02:57]} 9. f4 {[%clk 0:02:45]}  e5 {[%clk 0:02:47]} 10. fxe5 {[%clk 0:02:44]}  dxe5 {[%clk 0:02:47]} 11. d5 {[%clk 0:02:45]}  Nd4 {[%clk 0:02:29]} 12. e3 {[%clk 0:02:43]}  Nf5 {[%clk 0:02:30]} 13. Nxf5 {[%clk 0:02:43]}  Bxf5 {[%clk 0:02:30]} 14. e4 {[%clk 0:02:44]}  Bg4 {[%clk 0:02:31]} 15. Qb3 {[%clk 0:02:41]}  b6 {[%clk 0:02:27]} 16. h3 {[%clk 0:02:33]}  Bd7 {[%clk 0:02:15]} 17. Be3 {[%clk 0:02:28]}  Nh5 {[%clk 0:02:11]} 18. Kh2 {[%clk 0:02:27]}  f5 {[%clk 0:02:00]} 19. exf5 {[%clk 0:02:25]}  gxf5 {[%clk 0:02:01]} 20. Ne2 {[%clk 0:02:11]}  Nxg3 {[%clk 0:01:41]} 21. Nxg3 {[%clk 0:02:10]}  f4 {[%clk 0:01:41]} 22. Bd2 {[%clk 0:02:05]}  fxg3+ {[%clk 0:01:39]} 23. Qxg3 {[%clk 0:02:06]}  Kh8 {[%clk 0:01:32]} 24. Bb4 {[%clk 0:01:59]}  Rf4 {[%clk 0:01:15]} 25. Rxf4 {[%clk 0:01:19]}  exf4 {[%clk 0:01:16]} 26. Qxf4 {[%clk 0:01:20]}  Bxb2 {[%clk 0:01:11]} 27. Re1 {[%clk 0:01:01]}  Qf6 {[%clk 0:00:39]} 28. Qxf6+ {[%clk 0:00:36]}  Bxf6 {[%clk 0:00:38]} 29. Be7 {[%clk 0:00:33]}  Kg7 {[%clk 0:00:34]} 30. d6 {[%clk 0:00:22]}  c6 {[%clk 0:00:34]} 31. Bxf6+ {[%clk 0:00:21]}  Kxf6 {[%clk 0:00:35]} 32. Re7 {[%clk 0:00:22]}  Rd8 {[%clk 0:00:32]} 33. Rxh7 {[%clk 0:00:20]}  Ke5 {[%clk 0:00:32]} 34. Rh6 {[%clk 0:00:18]}  Be6 {[%clk 0:00:30]} 35. Bxc6 {[%clk 0:00:18]}  Rxd6 {[%clk 0:00:26]} 36. Bd5 {[%clk 0:00:14]}  Bxd5 {[%clk 0:00:16]} 37. Rxd6 {[%clk 0:00:14]}  Kxd6 {[%clk 0:00:16]} 38. cxd5 {[%clk 0:00:15]}  Kxd5 {[%clk 0:00:16]} 39. Kg3 {[%clk 0:00:15]}  b5 {[%clk 0:00:16]} 40. h4 {[%clk 0:00:12]}  a5 {[%clk 0:00:14]} 41. Kf4 {[%clk 0:00:09]}  b4 {[%clk 0:00:12]} 42. h5 {[%clk 0:00:09]}  a4 {[%clk 0:00:12]} 43. h6 {[%clk 0:00:08]}  b3 {[%clk 0:00:12]} 44. h7 {[%clk 0:00:07]}  b2 {[%clk 0:00:11]} 45. h8=Q {[%clk 0:00:08]}  b1=Q {[%clk 0:00:11]} 46. Qe5+ {[%clk 0:00:06]}  Kc4 {[%clk 0:00:11]} 47. Qc7+ {[%clk 0:00:06]}  Kd4 {[%clk 0:00:07]} 48. Qd7+ {[%clk 0:00:03]}  Kc3 {[%clk 0:00:07]} 49. Qxa4 {[%clk 0:00:03]}  Qf1+ {[%clk 0:00:07]} 50. Ke5 {[%clk 0:00:02]}  Qe2+ {[%clk 0:00:05]} 51. Kd6 {[%clk 0:00:03]}  Qd3+ {[%clk 0:00:05]} 52. Kc5 {[%clk 0:00:03]}  Qe3+ {[%clk 0:00:05]} 53. Kb5 {[%clk 0:00:03]}  Qe8+ {[%clk 0:00:05]} 54. Ka5 {[%clk 0:00:04]}  Qa8+ {[%clk 0:00:04]} 55. Kb5 {[%clk 0:00:05]}  Qb7+ {[%clk 0:00:05]} 56. Kc5 {[%clk 0:00:05]}  Qc7+ {[%clk 0:00:05]} 57. Kd5 {[%clk 0:00:05]}  Qb7+ {[%clk 0:00:06]} 58. Kc5 {[%clk 0:00:05]}  Qc7+ {[%clk 0:00:06]} 59. Kd5 {[%clk 0:00:06]}  Qb7+ {[%clk 0:00:06]} 60. Kd6 {[%clk 0:00:06]}  Qb6+ {[%clk 0:00:06]} 61. Kd7 {[%clk 0:00:07]}  Qb7+ {[%clk 0:00:06]} 62. Kd6 {[%clk 0:00:07]}  Qb8+ {[%clk 0:00:06]} 63. Kd5 {[%clk 0:00:07]}  Qd8+ {[%clk 0:00:06]} 64. Ke6 {[%clk 0:00:07]}  Qc8+ {[%clk 0:00:06]} 65. Ke5 {[%clk 0:00:07]}  Qc5+ {[%clk 0:00:06]} 66. Ke4 {[%clk 0:00:04]}  Qc4+ {[%clk 0:00:06]} 67. Qxc4+ {[%clk 0:00:04]}  Kxc4 {[%clk 0:00:07]} 68. Ke3 {[%clk 0:00:05]}  Kb4 {[%clk 0:00:07]} 69. Ke4 {[%clk 0:00:05]}  Ka3 {[%clk 0:00:08]} 70. Kd3 {[%clk 0:00:06]}  Kxa2 {[%clk 0:00:08]} 1/2-1/2


[Site "https://www.chess.com"]

[Event "Titled Tuesday Blitz February 21 Late 2023"]
[White "Bernadskiy, Vitaliy"]
[Black "Defend, Balint"]
[WhiteFideId "14100371"]
[BlackFideId "17004853"]
[WhiteElo "2592"]
[BlackElo "1673"]
[Result "1-0"]
[Round "02"]
[TimeControl "180+2"]
[Date "2023.02.21"]
[WhiteClock "0:00:10"]
[BlackClock "0:00:13"]

1. e4 {[%clk 0:03:00]}  c5 {[%clk 0:02:58]} 2. Nf3 {[%clk 0:03:01]}  d6 {[%clk 0:02:58]} 3. d4 {[%clk 0:03:01]}  cxd4 {[%clk 0:02:58]} 4. Nxd4 {[%clk 0:03:02]}  Nf6 {[%clk 0:02:59]} 5. Nc3 {[%clk 0:03:02]}  a6 {[%clk 0:02:59]} 6. Be2 {[%clk 0:03:02]}  e5 {[%clk 0:02:59]} 7. Nf3 {[%clk 0:03:02]}  Be7 {[%clk 0:03:00]} 8. Nd2 {[%clk 0:03:01]}  b5 {[%clk 0:02:37]} 9. a4 {[%clk 0:03:01]}  b4 {[%clk 0:02:36]} 10. Nd5 {[%clk 0:03:01]}  Nxd5 {[%clk 0:02:36]} 11. exd5 {[%clk 0:03:02]}  a5 {[%clk 0:02:33]} 12. Bb5+ {[%clk 0:02:58]}  Bd7 {[%clk 0:02:31]} 13. O-O {[%clk 0:02:54]}  O-O {[%clk 0:02:29]} 14. c4 {[%clk 0:02:49]}  Na6 {[%clk 0:02:18]} 15. Nb3 {[%clk 0:02:47]}  Qc7 {[%clk 0:02:10]} 16. Be3 {[%clk 0:02:40]}  Nc5 {[%clk 0:02:07]} 17. Nxc5 {[%clk 0:02:05]}  dxc5 {[%clk 0:02:05]} 18. f4 {[%clk 0:01:30]}  Bf5 {[%clk 0:01:41]} 19. Qd2 {[%clk 0:01:17]}  e4 {[%clk 0:01:32]} 20. Qe2 {[%clk 0:01:13]}  Bd6 {[%clk 0:01:18]} 21. g4 {[%clk 0:01:12]}  Bd7 {[%clk 0:01:18]} 22. b3 {[%clk 0:01:01]}  f5 {[%clk 0:01:14]} 23. g5 {[%clk 0:01:00]}  Be8 {[%clk 0:01:10]} 24. h4 {[%clk 0:00:58]}  Qf7 {[%clk 0:01:01]} 25. Kg2 {[%clk 0:00:47]}  Qh5 {[%clk 0:01:00]} 26. Qxh5 {[%clk 0:00:46]}  Bxh5 {[%clk 0:01:00]} 27. Kg3 {[%clk 0:00:39]}  Ra7 {[%clk 0:01:00]} 28. Kf2 {[%clk 0:00:32]}  Kf7 {[%clk 0:00:54]} 29. Bc1 {[%clk 0:00:32]}  Kg6 {[%clk 0:00:53]} 30. Ke3 {[%clk 0:00:32]}  Bf3 {[%clk 0:00:48]} 31. Bb2 {[%clk 0:00:30]}  Re7 {[%clk 0:00:47]} 32. Rf2 {[%clk 0:00:23]}  Kh5 {[%clk 0:00:44]} 33. Rg1 {[%clk 0:00:22]}  Kg6 {[%clk 0:00:31]} 34. Rh2 {[%clk 0:00:22]}  h5 {[%clk 0:00:30]} 35. gxh6+ {[%clk 0:00:22]}  Kxh6 {[%clk 0:00:30]} 36. Rg5 {[%clk 0:00:17]}  Bg4 {[%clk 0:00:30]} 37. h5 {[%clk 0:00:17]}  Rd8 {[%clk 0:00:18]} 38. Rg6+ {[%clk 0:00:17]}  Kh7 {[%clk 0:00:19]} 39. Rh4 {[%clk 0:00:11]}  Bxh5 {[%clk 0:00:18]} 40. Rxd6 {[%clk 0:00:12]}  Rxd6 {[%clk 0:00:18]} 41. Rxh5+ {[%clk 0:00:12]}  Kg6 {[%clk 0:00:18]} 42. Rg5+ {[%clk 0:00:12]}  Kh6 {[%clk 0:00:18]} 43. Rxf5 {[%clk 0:00:13]}  Rg6 {[%clk 0:00:18]} 44. Rg5 {[%clk 0:00:12]}  Rxg5 {[%clk 0:00:18]} 45. fxg5+ {[%clk 0:00:13]}  Kxg5 {[%clk 0:00:19]} 46. d6 {[%clk 0:00:13]}  Re6 {[%clk 0:00:19]} 47. Be5 {[%clk 0:00:10]}  Rxe5 {[%clk 0:00:19]} 48. d7 {[%clk 0:00:10]}  Kg4 {[%clk 0:00:13]} 49. d8=Q {[%clk 0:00:10]}  Kg3 {[%clk 0:00:10]} 50. Qd6 {[%clk 0:00:08]}  Kg2 {[%clk 0:00:11]} 51. Qxe5 {[%clk 0:00:09]}  Kf1 {[%clk 0:00:11]} 52. Qf4+ {[%clk 0:00:09]}  Ke1 {[%clk 0:00:12]} 53. Qf2+ {[%clk 0:00:09]}  Kd1 {[%clk 0:00:13]} 54. Qd2# {[%clk 0:00:10]} 1-0


[Site "https://www.chess.com"]

[Event "Titled Tuesday Blitz February 21 Late 2023"]
[White "Kokoszczynski, Jan"]
[Black "Kravtsiv, Martyn"]
[WhiteFideId "1174460"]
[BlackFideId "14113147"]
[WhiteElo "2247"]
[BlackElo "2598"]
[Result "0-1"]
[Round "02"]
[TimeControl "180+2"]
[Date "2023.02.21"]
[WhiteClock "0:00:42"]
[BlackClock "0:01:45"]

1. d4 {[%clk 0:03:00]}  Nf6 {[%clk 0:02:58]} 2. c4 {[%clk 0:03:00]}  e6 {[%clk 0:02:58]} 3. Nc3 {[%clk 0:03:00]}  Bb4 {[%clk 0:02:58]} 4. Qc2 {[%clk 0:02:57]}  O-O {[%clk 0:02:57]} 5. a3 {[%clk 0:02:57]}  Bxc3+ {[%clk 0:02:56]} 6. Qxc3 {[%clk 0:02:58]}  b6 {[%clk 0:02:56]} 7. Bg5 {[%clk 0:02:55]}  Bb7 {[%clk 0:02:55]} 8. e3 {[%clk 0:02:55]}  h6 {[%clk 0:02:53]} 9. Bh4 {[%clk 0:02:53]}  d5 {[%clk 0:02:44]} 10. Nf3 {[%clk 0:02:40]}  Nbd7 {[%clk 0:02:43]} 11. cxd5 {[%clk 0:02:34]}  Bxd5 {[%clk 0:02:42]} 12. Be2 {[%clk 0:02:34]}  c5 {[%clk 0:02:40]} 13. O-O {[%clk 0:02:33]}  Ne4 {[%clk 0:02:30]} 14. Qd3 {[%clk 0:02:18]}  g5 {[%clk 0:02:26]} 15. Bg3 {[%clk 0:02:18]}  Rc8 {[%clk 0:02:24]} 16. Rac1 {[%clk 0:02:11]}  c4 {[%clk 0:02:20]} 17. Qc2 {[%clk 0:02:02]}  b5 {[%clk 0:02:20]} 18. Nd2 {[%clk 0:01:55]}  f5 {[%clk 0:02:02]} 19. Nxe4 {[%clk 0:01:27]}  Bxe4 {[%clk 0:02:03]} 20. Qd2 {[%clk 0:01:27]}  Nc5 {[%clk 0:02:03]} 21. f3 {[%clk 0:01:23]}  Nb3 {[%clk 0:02:01]} 22. Qb4 {[%clk 0:01:16]}  Nxc1 {[%clk 0:01:53]} 23. Rxc1 {[%clk 0:01:17]}  Bd3 {[%clk 0:01:51]} 24. Bxd3 {[%clk 0:00:44]}  cxd3 {[%clk 0:01:50]} 25. Rd1 {[%clk 0:00:45]}  Qd5 {[%clk 0:01:47]} 26. Bd6 {[%clk 0:00:42]}  a5 {[%clk 0:01:45]} 0-1


[Site "https://www.chess.com"]